[Event "*** Titled Tuesday Blitz"]
[Site "Chess.com"]
[Date "2020.10.20"]
[Round "3"]
[White "AurumO"]
[Black "Playgood28"]
[Result "0-1"]
[WhiteElo "1947"]
[BlackElo "2298"]
[TimeControl "180+1"]
[EndTime "10:29:23 PDT"]
[Termination "Playgood28 won on time"]

1. e4 {[%clk 0:03:00.9]} 1... e5 {[%clk 0:02:59.7]} 2. Nf3 {[%clk 0:03:00.5]}
2... d6 {[%clk 0:03:00.1]} 3. d4 {[%clk 0:02:59.5]} 3... exd4 {[%clk 0:03:01]}
4. Nxd4 {[%clk 0:03:00.2]} 4... Nf6 {[%clk 0:03:00.7]} 5. Nc3 {[%clk 0:02:57.9]}
5... Be7 {[%clk 0:03:01.1]} 6. Bc4 {[%clk 0:02:55.6]} 6... O-O {[%clk
0:03:00.4]} 7. O-O {[%clk 0:02:55.6]} 7... Nxe4 {[%clk 0:03:00.9]} 8. Nxe4
{[%clk 0:02:48.5]} 8... d5 {[%clk 0:03:00.4]} 9. Bxd5 {[%clk 0:02:45.8]} 9...
Qxd5 {[%clk 0:02:59]} 10. Nc3 {[%clk 0:02:46.5]} 10... Qd8 {[%clk 0:02:58.4]}
11. Re1 {[%clk 0:02:44.7]} 11... Bf6 {[%clk 0:02:58]} 12. Be3 {[%clk 0:02:41.5]}
12... Nd7 {[%clk 0:02:52.3]} 13. Nf3 {[%clk 0:02:38.4]} 13... c6 {[%clk
0:02:49.7]} 14. Bf4 {[%clk 0:02:35.6]} 14... Nb6 {[%clk 0:02:19.4]} 15. Qxd8
{[%clk 0:02:08.3]} 15... Rxd8 {[%clk 0:02:17.3]} 16. Bc7 {[%clk 0:02:08]} 16...
Rf8 {[%clk 0:02:13.4]} 17. h3 {[%clk 0:02:00]} 17... Bf5 {[%clk 0:02:10.4]} 18.
Ne4 {[%clk 0:01:37.1]} 18... Bxb2 {[%clk 0:01:56.9]} 19. Rab1 {[%clk 0:01:33.9]}
19... Ba3 {[%clk 0:01:55.6]} 20. Rb3 {[%clk 0:01:25.8]} 20... Be7 {[%clk
0:01:46]} 21. Bd6 {[%clk 0:01:24.3]} 21... Bxe4 {[%clk 0:01:27.9]} 22. Bxe7
{[%clk 0:01:22.7]} 22... Bxf3 {[%clk 0:01:24.2]} 23. Bxf8 {[%clk 0:01:21.8]}
23... Bd5 {[%clk 0:01:23.3]} 24. Bc5 {[%clk 0:00:55.2]} 24... Bxb3 {[%clk
0:01:19.8]} 25. axb3 {[%clk 0:00:55.1]} 25... Nd5 {[%clk 0:01:06.3]} 26. c4
{[%clk 0:00:54.7]} 26... Nf4 {[%clk 0:01:05.2]} 27. Re7 {[%clk 0:00:51.4]} 27...
Ne6 {[%clk 0:01:01]} 28. Be3 {[%clk 0:00:32.8]} 28... b6 {[%clk 0:00:53.3]} 29.
f4 {[%clk 0:00:17.5]} 29... Kf8 {[%clk 0:00:47.6]} 30. Rd7 {[%clk 0:00:15.5]}
30... Ke8 {[%clk 0:00:45.8]} 31. Rd1 {[%clk 0:00:13.6]} 31... g6 {[%clk
0:00:40.7]} 32. Re1 {[%clk 0:00:12.8]} 32... Kd7 {[%clk 0:00:34.4]} 33. g4
{[%clk 0:00:11.9]} 33... f5 {[%clk 0:00:32.9]} 34. Rd1+ {[%clk 0:00:11]} 34...
Kc7 {[%clk 0:00:30.7]} 35. gxf5 {[%clk 0:00:08.2]} 35... gxf5 {[%clk 0:00:29.4]}
36. Kf2 {[%clk 0:00:07.4]} 36... Rg8 {[%clk 0:00:28.8]} 37. Rg1 {[%clk
0:00:06.1]} 37... Rxg1 {[%clk 0:00:28]} 38. Kxg1 {[%clk 0:00:07]} 38... a5
{[%clk 0:00:27.4]} 39. Kf2 {[%clk 0:00:07.2]} 39... b5 {[%clk 0:00:27.2]} 40.
cxb5 {[%clk 0:00:05.8]} 40... cxb5 {[%clk 0:00:27.1]} 41. Ke2 {[%clk 0:00:06.2]}
41... Kc6 {[%clk 0:00:27.1]} 42. Kd2 {[%clk 0:00:06.6]} 42... Kd5 {[%clk
0:00:26.8]} 43. Kd3 {[%clk 0:00:07.1]} 43... a4 {[%clk 0:00:25]} 44. b4 {[%clk
0:00:04.5]} 44... a3 {[%clk 0:00:22.3]} 45. Kc3 {[%clk 0:00:01.8]} 45... Ke4
{[%clk 0:00:21.6]} 46. Bc5 {[%clk 0:00:01.1]} 46... Nxc5 {[%clk 0:00:18.5]} 47.
bxc5 {[%clk 0:00:01.1]} 47... Kd5 {[%clk 0:00:18.3]} 48. Kb3 {[%clk 0:00:01.3]}
48... b4 {[%clk 0:00:17.5]} 0-1

[Event "*** Titled Tuesday Blitz"]
[Site "Chess.com"]
[Date "2020.10.20"]
[Round "3"]
[White "WPWPWP-2015"]
[Black "HrvojeZagreb"]
[Result "1-0"]
[WhiteElo "2446"]
[BlackElo "2196"]
[TimeControl "180+1"]
[EndTime "10:29:24 PDT"]
[Termination "WPWPWP-2015 won on time"]

1. e4 {[%clk 0:03:00.9]} 1... e6 {[%clk 0:02:59.3]} 2. d4 {[%clk 0:02:59.4]}
2... d5 {[%clk 0:02:59.3]} 3. Nc3 {[%clk 0:03:00.3]} 3... dxe4 {[%clk
0:02:59.4]} 4. Nxe4 {[%clk 0:02:59.7]} 4... Nd7 {[%clk 0:02:59.7]} 5. Nf3 {[%clk
0:02:58.7]} 5... Ngf6 {[%clk 0:02:59.9]} 6. Bd3 {[%clk 0:02:58.2]} 6... b6
{[%clk 0:02:57.5]} 7. Ned2 {[%clk 0:02:57.1]} 7... Bb7 {[%clk 0:02:57.2]} 8. O-O
{[%clk 0:02:57]} 8... Be7 {[%clk 0:02:51.8]} 9. Re1 {[%clk 0:02:56.5]} 9... O-O
{[%clk 0:02:49.8]} 10. a4 {[%clk 0:02:57.1]} 10... c5 {[%clk 0:02:49.3]} 11. a5
{[%clk 0:02:55.9]} 11... Qc7 {[%clk 0:02:46.5]} 12. a6 {[%clk 0:02:55]} 12...
Bc6 {[%clk 0:02:42.6]} 13. h3 {[%clk 0:02:48.6]} 13... Rad8 {[%clk 0:02:30.9]}
14. c3 {[%clk 0:02:46.3]} 14... cxd4 {[%clk 0:02:28.4]} 15. cxd4 {[%clk
0:02:46]} 15... Nh5 {[%clk 0:01:51.5]} 16. Qc2 {[%clk 0:02:24.3]} 16... h6
{[%clk 0:01:42.6]} 17. Ne4 {[%clk 0:02:17.4]} 17... Rc8 {[%clk 0:01:30.8]} 18.
Be3 {[%clk 0:02:07.1]} 18... Nf4 {[%clk 0:01:26.7]} 19. Bf1 {[%clk 0:02:03.2]}
19... Nd5 {[%clk 0:01:18.2]} 20. Rac1 {[%clk 0:01:58.9]} 20... Nxe3 {[%clk
0:01:15.1]} 21. fxe3 {[%clk 0:01:58.2]} 21... Bb4 {[%clk 0:00:53.5]} 22. Red1
{[%clk 0:01:56.6]} 22... Qb8 {[%clk 0:00:36.8]} 23. Nc3 {[%clk 0:01:34.3]} 23...
Qg3 {[%clk 0:00:35.3]} 24. Qf2 {[%clk 0:01:32.5]} 24... Qxf2+ {[%clk 0:00:27.9]}
25. Kxf2 {[%clk 0:01:32.1]} 25... Nf6 {[%clk 0:00:21.7]} 26. Ne5 {[%clk
0:01:29.7]} 26... Be8 {[%clk 0:00:18.2]} 27. Bd3 {[%clk 0:01:26.9]} 27... Bxc3
{[%clk 0:00:17.6]} 28. bxc3 {[%clk 0:01:25.9]} 28... Nd5 {[%clk 0:00:17.3]} 29.
c4 {[%clk 0:01:22.2]} 29... Nb4 {[%clk 0:00:16.9]} 30. Be4 {[%clk 0:01:22.2]}
30... f6 {[%clk 0:00:15.8]} 31. Nf3 {[%clk 0:01:13.4]} 31... Bc6 {[%clk
0:00:15.7]} 32. d5 {[%clk 0:01:13.3]} 32... Ba8 {[%clk 0:00:14.9]} 33. Nh4
{[%clk 0:00:59.9]} 33... exd5 {[%clk 0:00:12.5]} 34. cxd5 {[%clk 0:00:56.4]}
34... Rxc1 {[%clk 0:00:13.4]} 35. Rxc1 {[%clk 0:00:56.3]} 35... Bxd5 {[%clk
0:00:13.7]} 36. Bg6 {[%clk 0:00:53.5]} 36... Nxa6 {[%clk 0:00:12.3]} 37. Nf5
{[%clk 0:00:53.1]} 37... Bf7 {[%clk 0:00:11.4]} 38. Ne7+ {[%clk 0:00:50.3]}
38... Kh8 {[%clk 0:00:11.7]} 39. Ra1 {[%clk 0:00:50.2]} 39... Nc5 {[%clk
0:00:11.2]} 40. Rxa7 {[%clk 0:00:49.6]} 40... b5 {[%clk 0:00:09.9]} 41. Bxf7
{[%clk 0:00:42.5]} 41... Rxf7 {[%clk 0:00:08.7]} 42. Ng6+ {[%clk 0:00:42.8]}
42... Kg8 {[%clk 0:00:09.1]} 43. Ra8+ {[%clk 0:00:43]} 43... Kh7 {[%clk
0:00:09.3]} 44. Nf8+ {[%clk 0:00:43.3]} 44... Kg8 {[%clk 0:00:09.7]} 45. Ne6+
{[%clk 0:00:43.3]} 45... Kh7 {[%clk 0:00:09.8]} 46. Nxc5 {[%clk 0:00:43.6]}
46... Rc7 {[%clk 0:00:09.9]} 47. Nd3 {[%clk 0:00:42.2]} 47... Rc2+ {[%clk
0:00:09.1]} 48. Kf3 {[%clk 0:00:41.8]} 48... Rc3 {[%clk 0:00:09.4]} 49. Nb4
{[%clk 0:00:41]} 49... Rc4 {[%clk 0:00:09.1]} 50. Nd5 {[%clk 0:00:41]} 50... Rc5
{[%clk 0:00:06.5]} 51. Ke4 {[%clk 0:00:40.4]} 51... h5 {[%clk 0:00:04]} 52. Rb8
{[%clk 0:00:38.2]} 52... h4 {[%clk 0:00:03.1]} 53. Rb7 {[%clk 0:00:37.8]} 53...
Kg6 {[%clk 0:00:02.2]} 54. Kd4 {[%clk 0:00:35.4]} 54... Rc2 {[%clk 0:00:01.8]}
55. Rxb5 {[%clk 0:00:35]} 1-0

[Event "*** Titled Tuesday Blitz"]
[Site "Chess.com"]
[Date "2020.10.20"]
[Round "3"]
[White "SGchess01"]
[Black "MokshanovAlexey"]
[Result "1-0"]
[WhiteElo "2817"]
[BlackElo "2536"]
[TimeControl "180+1"]
[EndTime "10:29:25 PDT"]
[Termination "SGchess01 won by resignation"]

1. d4 {[%clk 0:03:00.9]} 1... d5 {[%clk 0:02:59.7]} 2. c4 {[%clk 0:02:49.5]}
2... e6 {[%clk 0:02:59.5]} 3. Nc3 {[%clk 0:02:49.3]} 3... Nf6 {[%clk 0:02:58.7]}
4. Bg5 {[%clk 0:02:49.7]} 4... c6 {[%clk 0:02:51.1]} 5. e3 {[%clk 0:02:48.7]}
5... Nbd7 {[%clk 0:02:43.4]} 6. Nf3 {[%clk 0:02:47.3]} 6... h6 {[%clk
0:02:38.9]} 7. Bh4 {[%clk 0:02:46.2]} 7... Be7 {[%clk 0:02:37.3]} 8. Rc1 {[%clk
0:02:45.1]} 8... O-O {[%clk 0:02:36.2]} 9. a3 {[%clk 0:02:40.7]} 9... a6 {[%clk
0:02:34.7]} 10. cxd5 {[%clk 0:02:33.3]} 10... exd5 {[%clk 0:02:34.5]} 11. Bd3
{[%clk 0:02:32.4]} 11... Re8 {[%clk 0:02:33.4]} 12. O-O {[%clk 0:02:18]} 12...
Nf8 {[%clk 0:02:33.3]} 13. Ne5 {[%clk 0:02:12.8]} 13... N6d7 {[%clk 0:02:31.1]}
14. Bg3 {[%clk 0:02:10]} 14... Nxe5 {[%clk 0:02:30.5]} 15. dxe5 {[%clk
0:02:10.3]} 15... f6 {[%clk 0:02:27.4]} 16. e4 {[%clk 0:02:05]} 16... dxe4
{[%clk 0:01:58.6]} 17. Nxe4 {[%clk 0:02:02.3]} 17... f5 {[%clk 0:01:58.7]} 18.
Nd6 {[%clk 0:01:56.7]} 18... Bxd6 {[%clk 0:01:56]} 19. exd6 {[%clk 0:01:57.6]}
19... Qf6 {[%clk 0:01:39.4]} 20. Qb3+ {[%clk 0:01:52.6]} 20... Qf7 {[%clk
0:01:39.2]} 21. Bc4 {[%clk 0:00:55.3]} 21... Be6 {[%clk 0:01:38.6]} 22. Bxe6
{[%clk 0:00:49.8]} 22... Nxe6 {[%clk 0:01:33.1]} 23. Be5 {[%clk 0:00:48.8]}
23... Nf8 {[%clk 0:01:30.8]} 24. Qc3 {[%clk 0:00:46.3]} 24... Nd7 {[%clk
0:01:27.9]} 25. f4 {[%clk 0:00:46.1]} 25... Re6 {[%clk 0:01:23]} 26. Rcd1 {[%clk
0:00:38.5]} 26... Rae8 {[%clk 0:01:22.5]} 27. Qb4 {[%clk 0:00:37.8]} 27... Nf8
{[%clk 0:00:55.8]} 28. Rd2 {[%clk 0:00:36.2]} 28... Qd7 {[%clk 0:00:51.7]} 29.
Rfd1 {[%clk 0:00:35.8]} 29... Ng6 {[%clk 0:00:51.5]} 30. Bc3 {[%clk 0:00:34.4]}
30... Re4 {[%clk 0:00:50.4]} 31. Qc5 {[%clk 0:00:34.1]} 31... Nxf4 {[%clk
0:00:49.4]} 32. Qb6 {[%clk 0:00:18.1]} 32... Nd5 {[%clk 0:00:42.5]} 33. Rxd5
{[%clk 0:00:17.1]} 33... cxd5 {[%clk 0:00:43.4]} 34. Qc5 {[%clk 0:00:17.2]}
34... Qc6 {[%clk 0:00:23.4]} 35. Qxc6 {[%clk 0:00:12]} 35... bxc6 {[%clk
0:00:22.8]} 36. Ba5 {[%clk 0:00:12.9]} 36... Kf7 {[%clk 0:00:12.4]} 37. d7
{[%clk 0:00:13.3]} 37... Re2 {[%clk 0:00:12.6]} 38. dxe8=Q+ {[%clk 0:00:13.5]}
38... Kxe8 {[%clk 0:00:13.4]} 39. Rd2 {[%clk 0:00:14]} 39... Re4 {[%clk
0:00:12.6]} 40. Kf2 {[%clk 0:00:14.4]} 40... Kd7 {[%clk 0:00:12.7]} 41. Bc3
{[%clk 0:00:13.7]} 41... g5 {[%clk 0:00:12.4]} 42. Re2 {[%clk 0:00:14.3]} 42...
Rf4+ {[%clk 0:00:09.3]} 43. Kg3 {[%clk 0:00:14.2]} 43... d4 {[%clk 0:00:09.6]}
44. Bd2 {[%clk 0:00:13.5]} 44... Rg4+ {[%clk 0:00:09.9]} 45. Kf3 {[%clk
0:00:14.1]} 45... c5 {[%clk 0:00:08.9]} 46. Re5 {[%clk 0:00:14]} 46... c4 {[%clk
0:00:07.2]} 47. Rxf5 {[%clk 0:00:14.2]} 47... Ke6 {[%clk 0:00:06.6]} 48. Kxg4
{[%clk 0:00:13.6]} 1-0

[Event "*** Titled Tuesday Blitz"]
[Site "Chess.com"]
[Date "2020.10.20"]
[Round "3"]
[White "Omk124"]
[Black "SantoBlue"]
[Result "0-1"]
[WhiteElo "2491"]
[BlackElo "2777"]
[TimeControl "180+1"]
[EndTime "10:29:25 PDT"]
[Termination "SantoBlue won by resignation"]

1. e4 {[%clk 0:03:00.9]} 1... c5 {[%clk 0:02:55.9]} 2. Nf3 {[%clk 0:03:01.2]}
2... e6 {[%clk 0:02:56.4]} 3. d4 {[%clk 0:03:01.6]} 3... cxd4 {[%clk 0:02:57.3]}
4. Nxd4 {[%clk 0:03:02.5]} 4... a6 {[%clk 0:02:58]} 5. c4 {[%clk 0:03:02.7]}
5... Nf6 {[%clk 0:02:57.5]} 6. Nc3 {[%clk 0:03:03.2]} 6... d6 {[%clk 0:02:57.1]}
7. a3 {[%clk 0:03:03.3]} 7... Qc7 {[%clk 0:02:55.9]} 8. Be2 {[%clk 0:03:03.3]}
8... b6 {[%clk 0:02:56.2]} 9. O-O {[%clk 0:03:03.5]} 9... Bb7 {[%clk 0:02:56.9]}
10. f3 {[%clk 0:03:03.3]} 10... Be7 {[%clk 0:02:57.6]} 11. Be3 {[%clk
0:03:03.5]} 11... Nbd7 {[%clk 0:02:58.2]} 12. b4 {[%clk 0:03:03.3]} 12... O-O-O
{[%clk 0:02:57.8]} 13. Rc1 {[%clk 0:03:03.8]} 13... Kb8 {[%clk 0:02:42.3]} 14.
Ndb5 {[%clk 0:02:43.9]} 14... axb5 {[%clk 0:02:39.8]} 15. Nxb5 {[%clk
0:02:44.8]} 15... Qc8 {[%clk 0:02:30.9]} 16. Qa4 {[%clk 0:02:44.6]} 16... Ba6
{[%clk 0:02:29.3]} 17. Rfd1 {[%clk 0:02:39.8]} 17... Bxb5 {[%clk 0:02:10.2]} 18.
Qxb5 {[%clk 0:02:37.3]} 18... Qb7 {[%clk 0:02:07.3]} 19. a4 {[%clk 0:02:37.6]}
19... Rc8 {[%clk 0:02:05.8]} 20. a5 {[%clk 0:02:35]} 20... Qc6 {[%clk
0:02:02.6]} 21. Qa6 {[%clk 0:02:23.1]} 21... Qb7 {[%clk 0:02:02.3]} 22. Qb5
{[%clk 0:02:18.4]} 22... bxa5 {[%clk 0:02:00.1]} 23. Qxa5 {[%clk 0:02:18.4]}
23... Bd8 {[%clk 0:02:00.7]} 24. Qa3 {[%clk 0:02:14.5]} 24... Bb6 {[%clk
0:01:46]} 25. c5 {[%clk 0:02:04.1]} 25... dxc5 {[%clk 0:01:46.1]} 26. bxc5
{[%clk 0:02:04.8]} 26... Nxc5 {[%clk 0:01:46.6]} 27. Rxc5 {[%clk 0:01:58.3]}
27... Rxc5 {[%clk 0:00:59]} 28. Bxc5 {[%clk 0:01:59.2]} 28... Rc8 {[%clk
0:00:55.4]} 29. Bxb6 {[%clk 0:01:54.4]} 29... Qxb6+ {[%clk 0:00:55.7]} 30. Kf1
{[%clk 0:01:47.7]} 30... Rc5 {[%clk 0:00:37.8]} 31. Bd3 {[%clk 0:01:43]} 31...
Qa5 {[%clk 0:00:35.8]} 32. Rb1+ {[%clk 0:01:42.3]} 32... Kc7 {[%clk 0:00:35.1]}
33. Qb2 {[%clk 0:01:38.5]} 33... Nd7 {[%clk 0:00:35.1]} 34. Qb7+ {[%clk
0:01:35.8]} 34... Kd8 {[%clk 0:00:33.4]} 35. Bb5 {[%clk 0:01:34.8]} 35... Rc7
{[%clk 0:00:29.6]} 36. Qa6 {[%clk 0:01:34.2]} 36... Qxa6 {[%clk 0:00:22.6]} 37.
Bxa6 {[%clk 0:01:35.1]} 37... Ne5 {[%clk 0:00:21.2]} 38. Rb8+ {[%clk 0:01:31.1]}
38... Ke7 {[%clk 0:00:20.9]} 39. Rb7 {[%clk 0:01:31.6]} 39... Rxb7 {[%clk
0:00:20.7]} 40. Bxb7 {[%clk 0:01:32.5]} 40... g5 {[%clk 0:00:21.1]} 41. Ke2
{[%clk 0:01:32.6]} 41... Kd6 {[%clk 0:00:21.1]} 42. Ke3 {[%clk 0:01:32.5]} 42...
Nc4+ {[%clk 0:00:20.8]} 43. Kd4 {[%clk 0:01:30.9]} 43... Ne5 {[%clk 0:00:21.3]}
44. Ba6 {[%clk 0:01:31]} 44... Nc6+ {[%clk 0:00:21.2]} 45. Ke3 {[%clk
0:01:31.4]} 45... Ke5 {[%clk 0:00:21.9]} 46. Be2 {[%clk 0:01:31.8]} 46... Nd4
{[%clk 0:00:19.5]} 47. Bd1 {[%clk 0:01:32.1]} 47... f5 {[%clk 0:00:18.6]} 48. g3
{[%clk 0:01:27]} 48... f4+ {[%clk 0:00:18.4]} 49. gxf4+ {[%clk 0:01:26.5]} 49...
gxf4+ {[%clk 0:00:19.3]} 50. Kd3 {[%clk 0:01:26.8]} 50... Nc6 {[%clk 0:00:19.6]}
51. Bb3 {[%clk 0:01:25.2]} 51... h6 {[%clk 0:00:18.5]} 52. Ba2 {[%clk 0:01:25]}
52... Nd4 {[%clk 0:00:16.5]} 53. Bb1 {[%clk 0:01:12.8]} 53... Nxf3 {[%clk
0:00:16.6]} 54. Ke2 {[%clk 0:01:13.4]} 54... Nxh2 {[%clk 0:00:16.3]} 55. Bc2
{[%clk 0:01:13.4]} 55... Ng4 {[%clk 0:00:16.4]} 56. Kf3 {[%clk 0:01:13.9]} 56...
Nf6 {[%clk 0:00:17.3]} 57. Bb1 {[%clk 0:01:13.8]} 57... h5 {[%clk 0:00:17.2]}
58. Bc2 {[%clk 0:01:14]} 58... h4 {[%clk 0:00:16.1]} 59. Bb1 {[%clk 0:01:08.7]}
59... h3 {[%clk 0:00:16.3]} 60. Bc2 {[%clk 0:01:07.9]} 60... Nxe4 {[%clk
0:00:14.9]} 61. Bd1 {[%clk 0:00:55.1]} 61... h2 {[%clk 0:00:14.4]} 62. Kg2
{[%clk 0:00:55.6]} 62... h1=Q+ {[%clk 0:00:15]} 63. Kxh1 {[%clk 0:00:55]} 63...
Nf2+ {[%clk 0:00:15.9]} 64. Kg2 {[%clk 0:00:55.9]} 0-1

[Event "*** Titled Tuesday Blitz"]
[Site "Chess.com"]
[Date "2020.10.20"]
[Round "3"]
[White "maxip32"]
[Black "Onischuk_V"]
[Result "1/2-1/2"]
[WhiteElo "2429"]
[BlackElo "2792"]
[TimeControl "180+1"]
[EndTime "10:29:25 PDT"]
[Termination "Game drawn by agreement"]

1. e4 {[%clk 0:03:00.9]} 1... d6 {[%clk 0:02:57.7]} 2. d4 {[%clk 0:02:59.8]}
2... Nf6 {[%clk 0:02:58.2]} 3. Nc3 {[%clk 0:03:00.2]} 3... g6 {[%clk 0:02:58.6]}
4. g3 {[%clk 0:02:58]} 4... Bg7 {[%clk 0:02:56.2]} 5. Bg2 {[%clk 0:02:58.6]}
5... O-O {[%clk 0:02:56.6]} 6. Nge2 {[%clk 0:02:57.8]} 6... c6 {[%clk
0:02:56.2]} 7. O-O {[%clk 0:02:57.9]} 7... e5 {[%clk 0:02:56.1]} 8. h3 {[%clk
0:02:56.8]} 8... b5 {[%clk 0:02:49.9]} 9. a3 {[%clk 0:02:56.3]} 9... Bb7 {[%clk
0:02:45.1]} 10. Re1 {[%clk 0:02:55.4]} 10... a6 {[%clk 0:02:44.9]} 11. Be3
{[%clk 0:02:53.7]} 11... Nbd7 {[%clk 0:02:44.5]} 12. dxe5 {[%clk 0:02:49.4]}
12... dxe5 {[%clk 0:02:41.7]} 13. a4 {[%clk 0:02:26.3]} 13... Qe7 {[%clk
0:02:38.5]} 14. Qc1 {[%clk 0:02:11.4]} 14... Rfd8 {[%clk 0:02:37.5]} 15. Rd1
{[%clk 0:02:10.3]} 15... b4 {[%clk 0:02:36.3]} 16. Nb1 {[%clk 0:02:09.7]} 16...
a5 {[%clk 0:02:27.8]} 17. f3 {[%clk 0:01:54.3]} 17... Nc5 {[%clk 0:02:11.2]} 18.
Nd2 {[%clk 0:01:38.5]} 18... Ba6 {[%clk 0:02:10.2]} 19. Bf1 {[%clk 0:01:37.9]}
19... Ne6 {[%clk 0:01:41.1]} 20. Kh2 {[%clk 0:01:17.7]} 20... c5 {[%clk
0:01:40.8]} 21. Ng1 {[%clk 0:01:15.4]} 21... Bb7 {[%clk 0:01:01.4]} 22. Nc4
{[%clk 0:01:11.6]} 22... Nd4 {[%clk 0:00:59.5]} 23. Nd2 {[%clk 0:00:58.6]} 23...
h5 {[%clk 0:00:43.2]} 24. c3 {[%clk 0:00:58.1]} 24... Ne6 {[%clk 0:00:42.8]} 25.
h4 {[%clk 0:00:55]} 25... Qc7 {[%clk 0:00:21.8]} 26. Nc4 {[%clk 0:00:53.7]}
26... Ne8 {[%clk 0:00:16.8]} 27. Qc2 {[%clk 0:00:43.7]} 27... Nd6 {[%clk
0:00:15.7]} 28. Nxd6 {[%clk 0:00:42.8]} 28... Rxd6 {[%clk 0:00:15.7]} 29. Rxd6
{[%clk 0:00:43.7]} 29... Qxd6 {[%clk 0:00:15.9]} 30. Rd1 {[%clk 0:00:43.5]}
30... Qc7 {[%clk 0:00:15]} 31. Bc4 {[%clk 0:00:37.9]} 31... Qe7 {[%clk
0:00:14.2]} 32. Qf2 {[%clk 0:00:35.5]} 32... Bf8 {[%clk 0:00:10.6]} 33. Nh3
{[%clk 0:00:30.7]} 33... Bc6 {[%clk 0:00:09]} 34. Bb3 {[%clk 0:00:27.5]} 34...
Rd8 {[%clk 0:00:08.3]} 35. Rxd8 {[%clk 0:00:25.6]} 35... Nxd8 {[%clk 0:00:08]}
36. Qd2 {[%clk 0:00:21.9]} 36... Qd7 {[%clk 0:00:07.3]} 37. Qxd7 {[%clk
0:00:21]} 37... Bxd7 {[%clk 0:00:07.9]} 38. Ng5 {[%clk 0:00:20.2]} 38... Kg7
{[%clk 0:00:08.2]} 39. f4 {[%clk 0:00:19]} 39... f6 {[%clk 0:00:08.5]} 40. Nf3
{[%clk 0:00:19.1]} 40... Nc6 {[%clk 0:00:07.9]} 41. fxe5 {[%clk 0:00:18.6]}
41... Nxe5 {[%clk 0:00:07.8]} 42. Nxe5 {[%clk 0:00:18.8]} 42... fxe5 {[%clk
0:00:08.4]} 43. Kg2 {[%clk 0:00:18.4]} 43... Bd6 {[%clk 0:00:08.9]} 44. Kf3
{[%clk 0:00:18.2]} 44... Bc6 {[%clk 0:00:08.9]} 45. Bc2 {[%clk 0:00:17.4]} 45...
Bd7 {[%clk 0:00:08.7]} 46. c4 {[%clk 0:00:15.4]} 46... Bg4+ {[%clk 0:00:08.7]}
47. Kf2 {[%clk 0:00:15.3]} 47... Be7 {[%clk 0:00:08.5]} 48. b3 {[%clk
0:00:15.6]} 48... Be6 {[%clk 0:00:08.5]} 49. Bd3 {[%clk 0:00:15.4]} 49... Bd7
{[%clk 0:00:07.4]} 1/2-1/2

[Event "*** Titled Tuesday Blitz"]
[Site "Chess.com"]
[Date "2020.10.20"]
[Round "3"]
[White "GMaka"]
[Black "SamuelGhimpu2003"]
[Result "0-1"]
[WhiteElo "2370"]
[BlackElo "2579"]
[TimeControl "180+1"]
[EndTime "10:29:26 PDT"]
[Termination "SamuelGhimpu2003 won by resignation"]

1. Nf3 {[%clk 0:03:00.9]} 1... Nf6 {[%clk 0:02:58.3]} 2. b3 {[%clk 0:03:00.3]}
2... d5 {[%clk 0:02:50.2]} 3. Bb2 {[%clk 0:03:01.2]} 3... c5 {[%clk 0:02:49.8]}
4. e3 {[%clk 0:03:01]} 4... Bg4 {[%clk 0:02:48.9]} 5. Bb5+ {[%clk 0:02:59.2]}
5... Nbd7 {[%clk 0:02:47.9]} 6. h3 {[%clk 0:02:59.4]} 6... Bh5 {[%clk
0:02:47.7]} 7. g4 {[%clk 0:02:59.6]} 7... Bg6 {[%clk 0:02:47.8]} 8. Ne5 {[%clk
0:02:59.1]} 8... a6 {[%clk 0:02:47.8]} 9. Bxd7+ {[%clk 0:02:55.3]} 9... Nxd7
{[%clk 0:02:48.7]} 10. h4 {[%clk 0:02:51]} 10... Nxe5 {[%clk 0:02:45.6]} 11.
Bxe5 {[%clk 0:02:51.9]} 11... f6 {[%clk 0:02:43.7]} 12. h5 {[%clk 0:02:27.4]}
12... Bf7 {[%clk 0:02:43.5]} 13. Bb2 {[%clk 0:02:25.5]} 13... d4 {[%clk
0:02:38.7]} 14. Qf3 {[%clk 0:02:19.6]} 14... Qd7 {[%clk 0:02:12.7]} 15. d3
{[%clk 0:02:11.8]} 15... O-O-O {[%clk 0:02:10.3]} 16. Nd2 {[%clk 0:02:09.6]}
16... Kb8 {[%clk 0:02:09.1]} 17. e4 {[%clk 0:02:08.2]} 17... e5 {[%clk
0:01:59.8]} 18. h6 {[%clk 0:02:01]} 18... Be6 {[%clk 0:01:58.4]} 19. hxg7 {[%clk
0:01:57.6]} 19... Qxg7 {[%clk 0:01:59.3]} 20. Rh4 {[%clk 0:01:43.9]} 20... Rg8
{[%clk 0:01:58.7]} 21. Qg3 {[%clk 0:01:33.7]} 21... Bxg4 {[%clk 0:01:56]} 22. f3
{[%clk 0:01:32.6]} 22... Be6 {[%clk 0:01:55.3]} 23. Qxg7 {[%clk 0:01:32]} 23...
Rxg7 {[%clk 0:01:56.2]} 24. Kf2 {[%clk 0:01:27.6]} 24... Bd6 {[%clk 0:01:41.2]}
25. Rah1 {[%clk 0:01:25.5]} 25... Bg8 {[%clk 0:01:12.9]} 26. Nf1 {[%clk
0:01:23.2]} 26... b5 {[%clk 0:00:56.6]} 27. Ng3 {[%clk 0:01:20.6]} 27... c4
{[%clk 0:00:54.7]} 28. Nf5 {[%clk 0:01:09]} 28... Rc7 {[%clk 0:00:54.8]} 29.
Nxd6 {[%clk 0:01:05.2]} 29... Rxd6 {[%clk 0:00:55.1]} 30. Ba3 {[%clk 0:01:05.5]}
30... Rd8 {[%clk 0:00:53.6]} 31. bxc4 {[%clk 0:00:55.5]} 31... bxc4 {[%clk
0:00:54.5]} 32. Rb1+ {[%clk 0:00:54.3]} 32... Ka8 {[%clk 0:00:52.9]} 33. Rh6
{[%clk 0:00:41.9]} 33... cxd3 {[%clk 0:00:51.9]} 34. cxd3 {[%clk 0:00:42.8]}
34... Rc6 {[%clk 0:00:34.4]} 35. Be7 {[%clk 0:00:38.6]} 35... Re8 {[%clk
0:00:34.7]} 36. Rxf6 {[%clk 0:00:35.7]} 36... Rc2+ {[%clk 0:00:34.2]} 37. Kg3
{[%clk 0:00:35.5]} 37... Rxe7 {[%clk 0:00:31.4]} 38. Rf8+ {[%clk 0:00:35.7]}
38... Ka7 {[%clk 0:00:31.9]} 39. Rxg8 {[%clk 0:00:35.4]} 39... Rxa2 {[%clk
0:00:28.2]} 40. Rbb8 {[%clk 0:00:29.4]} 40... Rd2 {[%clk 0:00:24.3]} 41. Ra8+
{[%clk 0:00:23.3]} 41... Kb6 {[%clk 0:00:24.3]} 42. Rgb8+ {[%clk 0:00:24.2]}
42... Ka5 {[%clk 0:00:20.7]} 43. Rb3 {[%clk 0:00:22.1]} 43... Rg7+ {[%clk
0:00:19.7]} 44. Kh3 {[%clk 0:00:22.3]} 44... Ka4 {[%clk 0:00:19.1]} 45. Rab8
{[%clk 0:00:21]} 45... a5 {[%clk 0:00:18.6]} 46. Rb1 {[%clk 0:00:15.8]} 46...
Rxd3 {[%clk 0:00:19]} 47. Ra1+ {[%clk 0:00:09.6]} 47... Ra3 {[%clk 0:00:19.1]}
48. Rxa3+ {[%clk 0:00:08.8]} 48... Kxa3 {[%clk 0:00:18.9]} 49. Rb5 {[%clk
0:00:09.7]} 49... a4 {[%clk 0:00:17.6]} 50. Rxe5 {[%clk 0:00:09.7]} 50... Rd7
{[%clk 0:00:17.3]} 51. Rd5 {[%clk 0:00:09.4]} 51... Rxd5 {[%clk 0:00:16.9]} 52.
exd5 {[%clk 0:00:10.3]} 52... d3 {[%clk 0:00:17.8]} 0-1